fUST/lending_fUST_20260114
["ID","MTS","AMOUNT","RATE_DAILY","PERIOD"]
[401795537,1768377361747,-500.0,0.00010068,2]
[401795538,1768377361792,-500.0,0.00010068,2]
[401795539,1768377361838,-500.0,0.00010068,2]
[401795540,1768377361883,-500.0,0.00010068,2]
[401795541,1768377361930,-500.0,0.00010068,2]
[401795542,1768377361973,-500.0,0.00010068,2]
[401795543,1768377362018,-500.0,0.00010068,2]
[401795544,1768377362065,-500.0,0.00010068,2]
[401795545,1768377362110,-500.0,0.00010068,2]
[401795546,1768377362174,-500.0,0.00010068,2]
[401795547,1768377362220,-4430.14210721,0.00010068,2]
[401795548,1768377362280,-500.0,0.00010068,2]
[401795549,1768377362323,-4430.14210721,0.00010068,2]
[401795550,1768377362392,-500.0,0.00010068,2]
[401795551,1768377362436,-4430.14210721,0.00010068,2]
[401795552,1768377365640,-223.42205112,0.00010068,2]
[401795553,1768377422380,300.0,0.00010068,2]
[401795554,1768377470414,889.9083895,9.797e-05,2]
[401795555,1768377482479,300.0,0.00010068,2]
[401795556,1768377482872,1120.0355268,0.00010068,2]
[401795557,1768377483571,1120.0355268,0.00010068,2]
[401795558,1768377484252,1120.0355268,0.00010068,2]
[401795559,1768377485420,1120.0355268,0.00010068,2]
[401795560,1768377487391,500.0,0.00010067,2]
[401795561,1768377487460,500.0,0.00010067,2]
[401795562,1768377487522,500.0,0.00010067,2]
[401795563,1768377487572,500.0,0.00010067,2]
[401795564,1768377487636,645.0,0.00010067,2]
[401795565,1768377487794,500.0,0.00010067,2]
[401795566,1768377487915,438.11540106,0.00010067,2]
[401795567,1768377487944,61.88459894,0.00010067,2]
[401795568,1768377488539,500.0,0.00010067,2]
[401795569,1768377488580,500.0,0.00010067,2]
[401795570,1768377488627,500.0,0.00010067,2]
[401795571,1768377488669,500.0,0.00010067,2]
[401795572,1768377488710,500.0,0.00010067,2]
[401795573,1768377488749,500.0,0.00010067,2]
[401795574,1768377488793,500.0,0.00010067,2]
[401795575,1768377488835,500.0,0.00010067,2]
[401795576,1768377488880,500.0,0.00010067,2]
[401795577,1768377488920,500.0,0.00010067,2]
[401795578,1768377488959,500.0,0.00010067,2]
[401795579,1768377488997,500.0,0.00010067,2]
[401795580,1768377489186,500.0,0.00010067,2]
[401795581,1768377489232,500.0,0.00010067,2]
[401795582,1768377489278,500.0,0.00010067,2]
[401795583,1768377489320,500.0,0.00010067,2]
[401795584,1768377489364,500.0,0.00010067,2]
[401795585,1768377489410,500.0,0.00010067,2]
[401795586,1768377489450,500.0,0.00010067,2]
[401795587,1768377489490,438.12540106,0.00010067,2]
[401795588,1768377489522,61.87459894,0.00010067,2]
[401795589,1768377489561,500.0,0.00010067,2]
[401795590,1768377489601,188.28709384,0.00010067,2]
[401795591,1768377489646,500.0,0.00010067,2]
[401795592,1768377489692,500.0,0.00010067,2]
[401795593,1768377489732,500.0,0.00010067,2]
[401795594,1768377489780,500.0,0.00010067,2]
[401795595,1768377489832,500.0,0.00010067,2]
[401795596,1768377489873,500.0,0.00010067,2]
[401795597,1768377489914,500.0,0.00010067,2]
[401795598,1768377489961,500.0,0.00010067,2]
[401795599,1768377490009,500.0,0.00010067,2]
[401795600,1768377490058,500.0,0.00010067,2]
[401795601,1768377490105,500.0,0.00010067,2]
[401795602,1768377501308,500.0,0.00010067,2]
[401795603,1768377501356,500.0,0.00010067,2]
[401795604,1768377501418,500.0,0.00010067,2]
[401795605,1768377501468,500.0,0.00010067,2]
[401795606,1768377501525,500.0,0.00010067,2]
[401795607,1768377501566,500.0,0.00010067,2]
[401795608,1768377501619,500.0,0.00010067,2]
[401795609,1768377501791,249.84830722,0.00010067,2]
[401795610,1768377501830,250.15169278,0.00010067,2]
[401795611,1768377501879,500.0,0.00010067,2]
[401795612,1768377501920,500.0,0.00010067,2]
[401795613,1768377501962,500.0,0.00010067,2]
[401795614,1768377502006,500.0,0.00010067,2]
[401795615,1768377502048,500.0,0.00010067,2]
[401795616,1768377502092,500.0,0.00010067,2]
[401795617,1768377502139,500.0,0.00010067,2]
[401795618,1768377502184,500.0,0.00010067,2]
[401795619,1768377502227,500.0,0.00010067,2]
[401795620,1768377502272,500.0,0.00010067,2]
[401795621,1768377502317,500.0,0.00010067,2]
[401795622,1768377502358,500.0,0.00010067,2]
[401795623,1768377502399,500.0,0.00010067,2]
[401795624,1768377502440,500.0,0.00010067,2]
[401795625,1768377502485,500.0,0.00010067,2]
[401795626,1768377502524,500.0,0.00010067,2]
[401795627,1768377502564,500.0,0.00010067,2]
[401795628,1768377502604,500.0,0.00010067,2]
[401795629,1768377502646,500.0,0.00010067,2]
[401795630,1768377502689,249.85830722,0.00010067,2]
[401795631,1768377502722,250.14169278,0.00010067,2]
[401795632,1768377502767,500.0,0.00010067,2]
[401795633,1768377502814,500.0,0.00010067,2]
[401795634,1768377502854,500.0,0.00010067,2]
[401795635,1768377502894,500.0,0.00010067,2]
[401795636,1768377502934,500.0,0.00010067,2]
[401795637,1768377502974,500.0,0.00010067,2]
[401795638,1768377503020,500.0,0.00010067,2]
[401795639,1768377508105,162.85032204,0.00010067,2]
[401795640,1768377523554,392.24,0.0001,2]
[401795641,1768377542732,300.0,0.00010068,2]
[401795642,1768377544224,500.0,0.00010067,2]
[401795643,1768377544656,500.0,0.00010067,2]
[401795644,1768377544903,500.0,0.00010068,2]
[401795645,1768377544990,500.0,0.00010067,2]
[401795646,1768377554047,500.0,0.00010067,2]
[401795647,1768377554541,500.0,0.00010067,2]
[401795648,1768377554591,500.0,0.00010067,2]
[401795649,1768377554641,500.0,0.00010067,2]
[401795650,1768377554686,500.0,0.00010067,2]
[401795651,1768377554728,500.0,0.00010068,2]
[401795652,1768377554773,394.77798518,0.00010067,2]
[401795653,1768377554809,105.22201482,0.00010067,2]
[401795654,1768377554850,500.0,0.00010068,2]
[401795655,1768377554909,500.0,0.00010068,2]
[401795656,1768377554956,500.0,0.00010067,2]
[401795657,1768377555143,500.0,0.00010067,2]
[401795658,1768377555184,546.00476473,0.00010068,2]
[401795659,1768377555228,500.0,0.00010067,2]
[401795660,1768377555284,500.0,0.00010068,2]
[401795661,1768377555352,500.0,0.00010067,2]
[401795662,1768377555392,500.0,0.00010068,2]
[401795663,1768377555441,500.0,0.00010067,2]
[401795664,1768377555490,500.0,0.00010067,2]
[401795665,1768377555545,500.0,0.00010067,2]
[401795666,1768377555592,500.0,0.00010068,2]
[401795667,1768377555647,500.0,0.00010068,2]
[401795668,1768377555692,500.0,0.00010068,2]
[401795669,1768377555739,500.0,0.00010068,2]
[401795670,1768377555793,500.0,0.00010067,2]
[401795671,1768377555834,500.0,0.00010068,2]
[401795672,1768377555882,500.0,0.00010067,2]
[401795673,1768377555933,348.78322045,0.00010068,2]
[401795674,1768377603217,1665.51,5e-05,2]
[401795675,1768377603544,1665.51,5.5e-05,2]
[401795676,1768377603891,1665.51,6e-05,2]
[401795677,1768377604214,1665.51,6.5e-05,2]
[401795678,1768377604529,1665.51,7.1e-05,2]
[401795679,1768377604903,1665.51,7.6e-05,2]
[401795680,1768377605406,6.95,8.1e-05,2]
[401795681,1768377605439,1658.56,8.1e-05,2]
[401795682,1768377605717,1665.51,8.6e-05,2]
[401795683,1768377606022,1665.51,9.1e-05,2]
[401795684,1768377606471,1665.51,9.6e-05,2]
[401795685,1768377612449,213.1126753,9.126e-05,2]
[401795686,1768377621158,1665.31,5e-05,2]
[401795687,1768377621474,210.4,6.922e-05,2]
[401795688,1768377621891,315.61,7.236e-05,2]
[401795689,1768377622326,420.81,7.551e-05,2]
[401795690,1768377622744,519.6773247,7.866e-05,2]
[401795691,1768377622777,6.3326753,7.866e-05,2]
[401795692,1768377623669,631.21,8.18e-05,2]
[401795693,1768377624103,736.41,8.495e-05,2]
[401795694,1768377624507,841.61,8.81e-05,2]
[401795695,1768377624917,946.82,9.124e-05,2]
[401795696,1768377625335,1052.02,9.439e-05,2]
[401795698,1768377679678,163.749336,9.149e-05,2]
[401795699,1768377679927,163.749336,9.149e-05,120]
[401795702,1768377698297,164.5,7.588e-05,2]
[401795703,1768377698713,197.4,7.892e-05,2]
[401795704,1768377699210,230.3,8.195e-05,2]
[401795705,1768377700165,263.2,8.499e-05,2]
[401795706,1768377700588,296.09,8.802e-05,2]
[401795707,1768377701019,328.99,9.106e-05,2]
[401795709,1768377703126,223.527,9.868e-05,2]
[401795710,1768377703163,178.226,9.868e-05,2]
[401795711,1768377728829,300.613652,9.076e-05,2]
[401795712,1768377746804,1000.0,0.0003,120]
[401795713,1768377874967,51.54327914,0.00023793,110]
[401795714,1768377874991,156.93175623,0.00023793,110]
[401795716,1768377972798,511.50433865,9.996e-05,2]
[401795776,1768378043488,498.173301,0.00030137,120]
[401795788,1768378057831,-307.47995707,0.0001,2]
[401795789,1768378060564,-264.5538748,0.0001,2]
[401795790,1768378064268,-167.32207296,0.0001,2]
[401795791,1768378067681,-168.03777039,0.0001,2]
[401795792,1768378072243,-92.60632478,0.0001,2]
[401795793,1768378072265,-173.46335074,0.0001,2]
[401795794,1768378075028,-263.51690663,0.0001,2]
[401795795,1768378077137,-143.75974263,0.0001,2]
[401795796,1768378077161,-24.3700499,0.00010032,2]
[401795797,1768378078698,-428.54558368,0.00010032,2]
[401795798,1768378079677,158.77,9.986e-05,2]
[401795799,1768378079995,158.77,9.986e-05,2]
[401795800,1768378080267,158.75,9.986e-05,2]
[401795801,1768378081952,-218.1276164,0.00010032,2]
[401795802,1768378081977,-50.00842631,0.00010064,2]
[401795803,1768378086679,-199.81028461,0.00010064,2]
[401795804,1768378088820,-310.51046058,0.00010064,2]
[401795805,1768378090306,-403.32462379,0.00010064,2]
[401795806,1768378094042,-236.34620471,0.00010064,2]
[401795807,1768378094067,-20.72015133,0.00010064,2]
[401795808,1768378096010,-222.17185254,0.00010064,2]
[401795809,1768378098756,-57.10799613,0.00010064,2]
[401795810,1768378098779,-229.1888931,0.00010065,2]
[401795811,1768378103299,-160.69453591,0.00010065,2]
[401795812,1768378106237,-309.94228881,0.00010065,2]
[401795813,1768378111709,-223.14866933,0.00010065,2]
[401795814,1768378118582,-311.09970819,0.00010065,2]
[401795815,1768378121915,-206.16292862,0.00010065,2]
[401795816,1768378123537,-156.72820523,0.00010065,2]
[401795817,1768378126367,-273.88900048,0.00010065,2]
[401795818,1768378129997,-217.89173053,0.00010065,2]
[401795819,1768378134480,-187.32214499,0.00010065,2]
[401795820,1768378137400,-438.12227503,0.00010065,2]
[401795821,1768378138885,-187.20418056,0.00010065,2]
[401795822,1768378140977,-217.56550528,0.00010065,2]
[401795823,1768378144625,-300.0,0.00010064,2]
[401795824,1768378144648,-135.07772497,0.00010065,2]
[401795825,1768378146911,-309.82486322,0.00010065,2]
[401795826,1768378153719,-168.25098877,0.00010065,2]
[401795827,1768378155762,-449.35467069,0.00010065,2]
[401795828,1768378162868,-174.49210635,0.00010065,2]
[401795829,1768378164658,152.25,6.527e-05,2]
[401795830,1768378165068,190.32,6.799e-05,2]
[401795831,1768378165472,228.38,7.071e-05,2]
[401795832,1768378165924,266.44,7.343e-05,2]
[401795833,1768378166336,304.51,7.615e-05,2]
[401795834,1768378166618,-6.68839385,0.00010065,2]
[401795835,1768378166640,-263.0463412,0.00010065,2]
[401795836,1768378166732,342.57,7.887e-05,2]
[401795837,1768378167129,380.63,8.159e-05,2]
[401795838,1768378168274,-210.2553064,0.00010065,2]
[401795839,1768378169889,-174.83171518,0.00010065,2]
[401795840,1768378173406,586.11699805,9.965e-05,2]
[401795841,1768378173439,10000.01,9.965e-05,2]
[401795842,1768378173473,10000.01,9.965e-05,2]
[401795843,1768378173507,10000.01,9.965e-05,2]
[401795844,1768378173548,10000.01,9.965e-05,2]
[401795845,1768378173582,10000.01,9.965e-05,2]
[401795846,1768378173616,10000.01,9.965e-05,2]
[401795847,1768378173649,10000.01,9.965e-05,2]
[401795848,1768378173682,10000.01,9.965e-05,2]
[401795849,1768378173715,10000.01,9.965e-05,2]
[401795850,1768378173747,-367.74359125,9.965e-05,2]
[401795851,1768378177818,-257.59938717,9.965e-05,2]
[401795852,1768378180718,-167.60787051,9.965e-05,2]
[401795853,1768378183794,-203.64178857,9.965e-05,2]
[401795854,1768378185558,-214.21744863,9.965e-05,2]
[401795855,1768378188319,-228.75034092,9.965e-05,2]
[401795856,1768378191220,-300.0,9.965e-05,2]
[401795857,1768378192759,-189.57,9.965e-05,2]
[401795858,1768378195538,-350.94916758,9.965e-05,2]
[401795859,1768378197721,-177.205375,9.965e-05,2]
[401795860,1768378201173,-153.05988995,9.965e-05,2]
[401795861,1768378201592,300.0,9.964e-05,2]
[401795862,1768378202001,300.0,9.964e-05,2]
[401795863,1768378202210,300.0,9.964e-05,2]
[401795864,1768378202249,300.0,9.964e-05,2]
[401795865,1768378202860,-331.74901123,9.965e-05,2]
[401795868,1768378204370,-221.67868038,9.965e-05,2]
[401795869,1768378205228,1200.0,9.964e-05,2]
[401795870,1768378207131,-282.10826947,9.965e-05,2]
[401795871,1768378209120,-205.14083363,9.965e-05,2]
[401795872,1768378211838,-264.74069852,9.965e-05,2]
[401795873,1768378214482,-434.27059194,9.965e-05,2]
[401795874,1768378217789,-156.33034166,9.965e-05,2]
[401795875,1768378219297,-175.86,9.965e-05,2]
[401795876,1768378221591,-500.0,9.965e-05,2]
[401795877,1768378225897,-245.37981066,9.965e-05,2]
[401795878,1768378229793,-163.55,9.965e-05,2]
[401795881,1768378232086,-276.11099952,9.965e-05,2]
[401795886,1768378232132,-52688.83139644,9.965e-05,2]
[401795895,1768378232201,-5763.83576447,9.965e-05,2]
[401795911,1768378232346,-17294.66422918,9.965e-05,2]
[401795913,1768378232357,-1027.6,9.965e-05,2]
[401795915,1768378232369,-488.93656277,9.965e-05,2]
[401795917,1768378232380,-1079.27782078,9.965e-05,2]
[401795991,1768378233159,168.17,8.695e-05,2]
[401795996,1768378233572,224.22,9.074e-05,2]
[401796002,1768378233615,-164.73874826,9.965e-05,2]
[401796042,1768378233979,280.28,9.452e-05,2]
[401796086,1768378234398,336.33,9.83e-05,2]
[401796213,1768378235601,-247.8309821,9.965e-05,2]
[401796498,1768378238498,-824790.81340136,9.965e-05,2]
[401796500,1768378238508,-560.0,9.965e-05,2]
[401796502,1768378238518,-151.0,0.00010063,2]
[401796504,1768378238528,-151.0,0.00010063,2]
[401796506,1768378238538,-151.0,0.00010063,2]
[401796508,1768378238548,-151.0,0.00010063,2]
[401796510,1768378238557,-151.0,0.00010063,2]
[401796512,1768378238568,-151.0,0.00010063,2]
[401796514,1768378238578,-151.0,0.00010063,2]
[401796516,1768378238588,-175.14541574,0.00010063,2]
[401796518,1768378238597,-49614.91297842,0.00010065,2]
[401796520,1768378238608,-405.0,0.00010065,2]
[401796522,1768378238617,-500.0,0.00010065,2]
[401796524,1768378238627,-500.0,0.00010065,2]
[401796526,1768378238636,-500.0,0.00010065,2]
[401796528,1768378238646,-568.30482563,0.00010065,2]
[401796530,1768378238655,-500.0,0.00010065,2]
[401796532,1768378238665,-190.69557807,0.00010065,2]
[401796534,1768378238674,-500.0,0.00010065,2]
[401796536,1768378238684,-500.0,0.00010065,2]
[401796538,1768378238693,-500.0,0.00010065,2]
[401796540,1768378238703,-500.0,0.00010065,2]
[401796542,1768378238712,-569.31100663,0.00010065,2]
[401796544,1768378238722,-500.0,0.00010065,2]
[401796546,1768378238731,-500.0,0.00010065,2]
[401796548,1768378238741,-500.0,0.00010065,2]
[401796550,1768378238751,-500.0,0.00010065,2]
[401796552,1768378238760,-500.0,0.00010065,2]
[401796554,1768378238770,-500.0,0.00010065,2]
[401796556,1768378238780,-500.0,0.00010065,2]
[401796558,1768378238789,-500.0,0.00010065,2]
[401796560,1768378238799,-500.0,0.00010065,2]
[401796562,1768378238808,-500.0,0.00010065,2]
[401796564,1768378238821,-500.0,0.00010065,2]
[401796566,1768378238830,-500.0,0.00010065,2]
[401796568,1768378238841,-500.0,0.00010065,2]
[401796570,1768378238850,-500.0,0.00010065,2]
[401796571,1768378238861,-500.0,0.00010065,2]
[401796572,1768378238870,-500.0,0.00010065,2]
[401796573,1768378238879,-500.0,0.00010065,2]
[401796574,1768378238888,-500.0,0.00010065,2]
[401796575,1768378238898,-500.0,0.00010065,2]
[401796577,1768378238908,-500.0,0.00010065,2]
[401796579,1768378238917,-270.56421984,0.00010065,2]
[401796581,1768378238926,-500.0,0.00010066,2]
[401796583,1768378238936,-500.0,0.00010066,2]
[401796585,1768378238946,-500.0,0.00010066,2]
[401796587,1768378238955,-500.0,0.00010066,2]
[401796589,1768378238965,-500.0,0.00010066,2]
[401796591,1768378238974,-500.0,0.00010066,2]
[401796593,1768378238984,-500.0,0.00010066,2]
[401796595,1768378238998,-500.0,0.00010066,2]
[401796597,1768378239008,-500.0,0.00010066,2]
[401796600,1768378239019,-500.0,0.00010066,2]
[401796602,1768378239029,-500.0,0.00010066,2]
[401796604,1768378239039,-500.0,0.00010066,2]
[401796605,1768378239048,-500.0,0.00010066,2]
[401796608,1768378239058,-500.0,0.00010066,2]
[401796610,1768378239070,-151.88,0.00010066,2]
[401796611,1768378239079,-500.0,0.00010067,2]
[401796613,1768378239090,-1665.51,0.000101,2]
[401796615,1768378239100,-392.39,0.00010208,2]
[401796618,1768378239111,-600.0,0.00010266,2]
[401796620,1768378239121,-300.0,0.00010267,2]
[401796621,1768378239131,-300.0,0.00010267,2]
[401796623,1768378239140,-300.0,0.00010267,2]
[401796625,1768378239151,-300.0,0.00010267,2]
[401796628,1768378239163,-300.0,0.00010267,2]
[401796630,1768378239173,-300.0,0.00010267,2]
[401796632,1768378239182,-300.0,0.00010267,2]
[401796634,1768378239191,-300.0,0.00010267,2]
[401796635,1768378239200,-300.0,0.00010267,2]
[401796637,1768378239210,-300.0,0.00010267,2]
[401796639,1768378239219,-300.0,0.00010267,2]
[401796641,1768378239229,-300.0,0.00010267,2]
[401796643,1768378239238,-300.0,0.00010267,2]
[401796645,1768378239248,-300.0,0.00010267,2]
[401796647,1768378239258,-300.0,0.00010267,2]
[401796649,1768378239267,-151.88,0.0001034,2]
[401796651,1768378239278,-500.0,0.00010341,2]
[401796653,1768378239288,-12627.63149262,0.00010447,2]
[401796655,1768378239297,-448.45,0.00010586,2]
[401796657,1768378239306,-1665.51,0.000106,2]
[401796659,1768378239315,-151.89,0.00010614,2]
[401796661,1768378239324,-500.0,0.00010615,2]
[401796663,1768378239334,-500.0,0.00010716,2]
[401796665,1768378239343,-288.40469912,0.00010716,2]
[401796667,1768378239352,-500.0,0.00010716,2]
[401796669,1768378239361,-152.26387906,0.00010716,2]
[401796671,1768378239370,-1000.0,0.000108,3]
[401796673,1768378239379,-1000.0,0.000108,4]
[401796675,1768378239389,-500.0,0.00010853,2]
[401796677,1768378239398,-500.0,0.00010853,2]
[401796679,1768378239408,-500.0,0.00010889,2]
[401796681,1768378239417,-366.2480884,0.00010959,2]
[401796683,1768378239426,-1504.104065,0.00010959,2]
[401796685,1768378239435,-420.0,0.0001096,2]
[401796687,1768378239445,-324.0,0.0001096,2]
[401796689,1768378239454,-420.0,0.0001096,2]
[401796691,1768378239463,-420.0,0.0001096,2]
[401796693,1768378239473,-1680.0,0.0001096,2]
[401796695,1768378239482,-504.5,0.00010964,2]
[401796697,1768378239492,-1111.37,0.00010971,2]
[401796699,1768378239501,-500.0,0.0001099,2]
[401796701,1768378239511,-500.0,0.0001099,2]
[401796703,1768378239521,-151.0,0.00011,2]
[401796705,1768378239530,-151.0,0.00011,2]
[401796707,1768378239539,-500.0,0.00011127,2]
[401796709,1768378239549,-500.0,0.00011127,2]
[401796711,1768378239558,-500.0,0.00011163,2]
[401796713,1768378239568,-1665.51,0.000112,2]
[401796715,1768378239578,-603.10014775,0.00011264,2]
[401796717,1768378239587,-500.0,0.00011264,2]
[401796719,1768378239597,-720.0,0.00011293,2]
[401796721,1768378239607,-560.56,0.00011342,2]
[401796723,1768378239618,-200.0,0.00011401,2]
[401796725,1768378239628,-175.48644191,0.00011401,2]
[401796727,1768378239637,-500.0,0.00011437,2]
[401796729,1768378239647,-1665.51,0.000117,2]
[401796731,1768378239656,-500.0,0.00011711,2]
[401796733,1768378239666,-210.35,0.00011983,2]
[401796735,1768378239675,-500.0,0.00011985,2]
[401796737,1768378239684,-791.83103498,0.00012032,2]
[401796739,1768378239693,-587.0,0.00012056,2]
[401796741,1768378239703,-587.0,0.00012056,2]
[401796743,1768378239712,-587.0,0.00012056,2]
[401796745,1768378239721,-2351.0,0.00012056,2]
[401796747,1768378239730,-1665.51,0.000122,2]
[401796749,1768378239739,-500.0,0.00012259,2]
[401796751,1768378239748,-5500.81,0.00012329,2]
[401796753,1768378239756,-4584.0,0.00012329,2]
[401796755,1768378239765,-3820.0,0.00012329,2]
[401796757,1768378239775,-3183.34,0.00012329,2]
[401796759,1768378239784,-2652.78,0.00012329,2]
[401796761,1768378239793,-2210.65,0.00012329,2]
[401796763,1768378239802,-1842.21,0.00012329,2]
[401796765,1768378239811,-1535.17,0.00012329,2]
[401796766,1768378239820,-1279.31,0.00012329,2]
[401796768,1768378239829,-1066.09,0.00012329,2]
[401796771,1768378239847,-888.41,0.00012329,2]
[401796774,1768378239858,-740.34,0.00012329,2]
[401796776,1768378239867,-616.95,0.00012329,2]
[401796778,1768378239877,-514.13,0.00012329,2]
[401796780,1768378239887,-428.44,0.00012329,2]
[401796782,1768378239896,-357.03,0.00012329,2]
[401796784,1768378239905,-297.53,0.00012329,2]
[401796786,1768378239915,-247.94,0.00012329,2]
[401796788,1768378239925,-206.62,0.00012329,2]
[401796790,1768378239934,-172.18,0.00012329,2]
[401796792,1768378239944,-860.93,0.00012329,2]
[401796794,1768378239955,-603.38656227,0.00012329,2]
[401796796,1768378239964,-603.38656227,0.00012329,2]
[401796798,1768378239974,-603.38656227,0.00012329,2]
[401796800,1768378239983,-603.38656227,0.00012329,2]
[401796801,1768378239996,-603.38656227,0.00012329,2]
[401796802,1768378240005,-603.38656227,0.00012329,2]
[401796803,1768378240015,-603.38656227,0.00012329,2]
[401796804,1768378240025,-603.38656227,0.00012329,2]
[401796805,1768378240034,-603.38656227,0.00012329,2]
[401796806,1768378240043,-603.38656227,0.00012329,2]
[401796807,1768378240053,-603.38656227,0.00012329,2]
[401796808,1768378240065,-603.38656227,0.00012329,2]
[401796810,1768378240075,-603.38656227,0.00012329,2]
[401796813,1768378240084,-603.38656227,0.00012329,2]
[401796816,1768378240094,-603.38656227,0.00012329,2]
[401796819,1768378240104,-603.38656227,0.00012329,2]
[401796821,1768378240113,-603.38656227,0.00012329,2]
[401796823,1768378240123,-603.38656227,0.00012329,2]
[401796825,1768378240133,-603.38656227,0.00012329,2]
[401796827,1768378240142,-603.38656227,0.00012329,2]
[401796829,1768378240152,-603.38656227,0.00012329,2]
[401796831,1768378240162,-603.38656227,0.00012329,2]
[401796833,1768378240171,-603.38656227,0.00012329,2]
[401796835,1768378240181,-603.38656227,0.00012329,2]
[401796837,1768378240191,-603.38656227,0.00012329,2]
[401796839,1768378240201,-603.38656227,0.00012329,2]
[401796841,1768378240211,-603.38656227,0.00012329,2]
[401796843,1768378240221,-603.38656227,0.00012329,2]
[401796845,1768378240231,-603.38656227,0.00012329,2]
[401796848,1768378240241,-603.38656227,0.00012329,2]
[401796850,1768378240250,-603.38656227,0.00012329,2]
[401796852,1768378240260,-603.38656227,0.00012329,2]
[401796854,1768378240272,-603.38656227,0.00012329,2]
[401796856,1768378240282,-603.38656227,0.00012329,2]
[401796858,1768378240292,-603.38656227,0.00012329,2]
[401796860,1768378240302,-603.38656227,0.00012329,2]
[401796862,1768378240312,-603.38656227,0.00012329,2]
[401796864,1768378240322,-603.38656227,0.00012329,2]
[401796866,1768378240331,-1563.35782209,0.00012329,2]
[401796868,1768378240341,-1563.35782209,0.00012329,2]
[401796870,1768378240351,-1563.35782209,0.00012329,2]
[401796872,1768378240360,-1563.35782209,0.00012329,2]
[401796874,1768378240370,-1563.35782209,0.00012329,2]
[401796876,1768378240379,-1563.35782209,0.00012329,2]
[401796878,1768378240389,-1563.35782209,0.00012329,2]
[401796880,1768378240398,-1563.35782209,0.00012329,2]
[401796898,1768378240551,-1563.35782209,0.00012329,2]
[401796900,1768378240561,-1563.35782209,0.00012329,2]
[401796902,1768378240571,-1563.35782209,0.00012329,2]
[401796904,1768378240580,-1563.35782209,0.00012329,2]
[401796906,1768378240589,-1563.35782209,0.00012329,2]
[401796908,1768378240599,-1563.35782209,0.00012329,2]
[401796911,1768378240608,-1563.35782209,0.00012329,2]
[401796913,1768378240617,-1563.35782209,0.00012329,2]
[401796915,1768378240627,-1563.35782209,0.00012329,2]
[401796917,1768378240637,-1563.35782209,0.00012329,2]
[401796919,1768378240646,-1563.35782209,0.00012329,2]
[401796921,1768378240655,-1563.35782209,0.00012329,2]
[401796923,1768378240664,-1563.35782209,0.00012329,2]
[401796925,1768378240675,-1563.35782209,0.00012329,2]
[401796927,1768378240684,-1563.35782209,0.00012329,2]
[401796929,1768378240693,-1563.35782209,0.00012329,2]
[401796931,1768378240702,-1563.35782209,0.00012329,2]
[401796933,1768378240711,-1563.35782209,0.00012329,2]
[401796935,1768378240721,-1543.46054072,0.00012329,2]
[401796937,1768378240730,-1543.46054072,0.00012329,2]
[401796939,1768378240740,-1543.46054072,0.00012329,2]
[401796941,1768378240749,-1543.46054072,0.00012329,2]
[401796943,1768378240758,-1543.46054072,0.00012329,2]
[401796945,1768378240767,-1543.46054072,0.00012329,2]
[401796947,1768378240776,-1543.46054072,0.00012329,2]
[401796949,1768378240786,-1543.46054072,0.00012329,2]